[Event "IIFL Wealth 4th Mumbai Open"]
[Site "Mumbai"]
[Date "2019.01.05"]
[Round "7"]
[White "Kapadi, Yash"]
[Black "Gengaje Pratik"]
[Result "1-0"]
[ECO "A05"]
[WhiteElo "1748"]
[BlackElo "1624"]
[Annotator "NA"]
[PlyCount "123"]
[EventDate "2018.12.30"]
[EventType "swiss"]
[EventCountry "IND"]
[SourceTitle "playchess.com"]
[Source "ChessBase"]
[SourceQuality "1"]
[TimeControl "40/5400+30:1800+30"]

1. Nf3 Nf6 2. g3 d5 3. Bg2 g6 4. O-O Bg7 5. c4 c6 6. cxd5 cxd5 7. d4 Nc6 8. Nc3 O-O 9. Bf4 Nh5 10. Be3 e6 11. Qd2 Re8 12. Rfd1 Na5 13. b3 Bd7 14. Ne5 Nc6 15. f4 Bf8 16. Bf2 f6 17. Nd3 f5 18. a3 Nf6 19. b4 Ne4 20. Nxe4 fxe4 21. Ne5 Rc8 22. g4 Nxe5 23. dxe5 Ba4 24. Rdc1 Rxc1+ 25. Rxc1 a6 26. Qc3 Qe7 27. Qe3 Bc6 28. Rc3 Qd7 29. Rc1 Qe7 30. Qb6 Qf7 31. Bg3 Be7 32. Bh3 Bd8 33. Qe3 Qd7 34. Qd4 a5 35. Rf1 axb4 36. axb4 Bb5 37. Rf2 Qc6 38. e3 Bb6 39. Qd2 Ra8 40. Bf1 Ra1 41. Kg2 Rxf1 42. Rxf1 Bxf1+ 43. Kxf1 Qc4+ 44. Kg2 d4 45. exd4 Bxd4 46. b5 e3 47. Qa5 Qd5+ 48. Kf1 Qf3+ 49. Ke1 b6 50. Qb4 Bc5 51. Qc4 Qh1+ 52. Ke2 Qg2+ 53. Kd3 Qd2+ 54. Ke4 Qg2+ 55. Kd3 Qd2+ 56. Ke4 Kf7 57. f5 gxf5+ 58. gxf5 Qg2+ 59. Kf4 e2 60. Qxe6+ Kf8 61. Qc8+ Ke7 62. Bh4+ 1-0

[Event "IIFL Wealth 4th Mumbai Open"]
[Site "Mumbai"]
[Date "2019.01.05"]
[Round "7"]
[White "Shivasubramanian R"]
[Black "Negi Augustiya"]
[Result "1/2-1/2"]
[ECO "B53"]
[WhiteElo "1738"]
[BlackElo "1521"]
[Annotator "NA"]
[PlyCount "85"]
[EventDate "2018.12.30"]
[EventType "swiss"]
[EventCountry "IND"]
[SourceTitle "playchess.com"]
[Source "ChessBase"]
[SourceQuality "1"]
[TimeControl "40/5400+30:1800+30"]

1. e4 c5 2. Nf3 d6 3. d4 cxd4 4. Qxd4 Nc6 5. Bb5 Bd7 6. Bxc6 Bxc6 7. Bg5 Qb6 8. Nc3 Qxd4 9. Nxd4 h6 10. Be3 a6 11. a4 Nf6 12. f3 e6 13. O-O Be7 14. b4 O-O 15. b5 axb5 16. axb5 Bd7 17. b6 Rxa1 18. Rxa1 Bd8 19. Ndb5 Be7 20. Rd1 Bxb5 21. Nxb5 d5 22. e5 Nd7 23. c4 Nxe5 24. cxd5 Nc4 25. Bf2 exd5 26. Rxd5 Rd8 27. Nc7 Kf8 28. Kf1 Rxd5 29. Nxd5 Ke8 30. Ke2 Kd7 31. Kd3 Nb2+ 32. Kc2 Nc4 33. Kc3 Nd6 34. Kd4 Bd8 35. Kc5 Nc8 36. Bd4 f6 37. g4 Ke6 38. h4 Be7+ 39. Nxe7 Nxe7 40. h5 Nc6 41. f4 Nxd4 42. Kxd4 Kd6 43. Ke4 {Ke5+} 1/2-1/2

[Event "IIFL Wealth 4th Mumbai Open"]
[Site "Mumbai"]
[Date "2019.01.05"]
[Round "7"]
[White "Pawar, Harshit"]
[Black "Kothari, Swapnil"]
[Result "1-0"]
[ECO "B22"]
[WhiteElo "1719"]
[BlackElo "1870"]
[Annotator "NA"]
[PlyCount "111"]
[EventDate "2018.12.30"]
[EventType "swiss"]
[EventCountry "IND"]
[SourceTitle "playchess.com"]
[Source "ChessBase"]
[SourceQuality "1"]
[TimeControl "40/5400+30:1800+30"]

1. e4 {[%emt 0:00:00]} c5 {[%emt 0:00:00]} 2. c3 {[%emt 0:00:30]} e6 {[%emt 0:00:00]} 3. Nf3 {[%emt 0:01:04]} d5 {[%emt 0:00:13]} 4. exd5 {[%emt 0:03:14]} exd5 {[%emt 0:02:46]} 5. d4 {[%emt 0:02:21]} Nf6 {[%emt 0:00:12]} 6. Bb5+ {[%emt 0:01:55]} Bd7 {[%emt 0:01:52]} 7. Bxd7+ {[%emt 0:02:08]} Nbxd7 {[%emt 0:00:25]} 8. O-O {[%emt 0:01:51]} Be7 {[%emt 0:02:01]} 9. Bf4 {[%emt 0:02:30]} O-O {[%emt 0:00:35]} 10. Nbd2 Nh5 {[%emt 0:03:28]} 11. Be3 {[%emt 0:05:14]} Qc7 {[%emt 0:06:55]} 12. dxc5 {[%emt 0:02:54]} Nxc5 {[%emt 0:09:09]} 13. Nd4 {[%emt 0:03:18]} g6 {[%emt 0:09:01]} 14. N2b3 {[%emt 0:03:08]} Na4 {[%emt 0:05:10]} 15. Qc2 {[%emt 0:03:36]} Bd6 {[%emt 0:06:48]} 16. Nf3 {[%emt 0:04:24]} Nb6 {[%emt 0:02:47]} 17. Nbd4 {[%emt 0:05:19]} Qd7 {[%emt 0:01:16]} 18. b3 {[%emt 0:02:24]} Nf6 {[%emt 0:02:40]} 19. a4 {[%emt 0:01:29]} Qg4 {[%emt 0:05:41]} 20. h3 {[%emt 0:03:31]} Qh5 {[%emt 0:02:25]} 21. Nb5 {[%emt 0:05:35]} Bb8 {[%emt 0:03:20]} 22. Bxb6 {[%emt 0:04:43]} axb6 {[%emt 0:00:02]} 23. Rad1 {[%emt 0:02:31]} Rc8 {[%emt 0:07:24]} 24. Qd3 {[%emt 0:01:43]} Rc5 {[%emt 0:11:08]} 25. Qd4 {[%emt 0:03:00]} Qf5 {[%emt 0:02:45]} 26. Rfe1 {[%emt 0:02:44]} Bf4 {[%emt 0:03:10]} 27. Re7 {[%emt 0:03:42]} Rb8 {[%emt 0:09:09]} 28. Rde1 {[%emt 0:03:57]} Ne4 {[%emt 0:00:12]} 29. g4 {[%emt 0:05:37]} Qc8 {[%emt 0:01:02]} 30. b4 {[%emt 0:01:19]} Rxb5 {[%emt 0:02:01]} 31. axb5 {[%emt 0:01:25]} Bd6 {[%emt 0:00:31]} 32. Qxd5 {[%emt 0:06:05]} Bxe7 {[%emt 0:00:18]} 33. Rxe4 {[%emt 0:01:11]} Bf6 {[%emt 0:00:11]} 34. Ne5 {[%emt 0:01:51]} Bxe5 {[%emt 0:00:39]} 35. Qxe5 {[%emt 0:00:14]} Ra8 {[%emt 0:00:14]} 36. Kg2 {[%emt 0:00:32]} Qf8 {[%emt 0:01:42]} 37. Qf6 {[%emt 0:02:33]} Qc8 {[%emt 0:00:35]} 38. Qxb6 {[%emt 0:01:23]} Qxc3 {[%emt 0:00:20]} 39. Qxb7 {[%emt 0:00:20]} Rd8 {[%emt 0:00:33]} 40. Rf4 Qb3 {[%emt 0:00:00]} 41. b6 {[%emt 0:02:52]} Qd5+ {[%emt 0:08:00]} 42. Qxd5 {[%emt 0:01:18]} Rxd5 {[%emt 0:00:01]} 43. Kf3 {[%emt 0:02:19]} Rb5 {[%emt 0:00:05]} 44. Ke3 {[%emt 0:00:21]} Rxb6 {[%emt 0:04:18]} 45. Kd3 {[%emt 0:00:07]} Kf8 {[%emt 0:01:07]} 46. Kc4 {[%emt 0:00:53]} Ke7 {[%emt 0:02:31]} 47. Kc5 {[%emt 0:00:23]} Rb8 {[%emt 0:00:10]} 48. b5 {[%emt 0:00:15]} Rc8+ {[%emt 0:00:06]} 49. Kb6 {[%emt 0:00:33]} Rc3 {[%emt 0:03:13]} 50. h4 {[%emt 0:00:28]} f6 {[%emt 0:02:02]} 51. Kb7 {[%emt 0:01:32]} Ke6 {[%emt 0:01:17]} 52. b6 {[%emt 0:00:39]} Ke5 {[%emt 0:01:21]} 53. Ra4 {[%emt 0:00:10]} Kd6 {[%emt 0:00:41]} 54. Ka7 {[%emt 0:00:48]} Rb3 {[%emt 0:01:29]} 55. b7 {[%emt 0:00:21]} Kc7 {[%emt 0:00:26]} 56. b8=Q+ {[%emt 0:00:21]} 1-0

[Event "IIFL Wealth 4th Mumbai Open"]
[Site "Mumbai"]
[Date "2019.01.05"]
[Round "7"]
[White "Arhan Chethan Anand"]
[Black "Sheikh Jahan"]
[Result "1-0"]
[ECO "E91"]
[WhiteElo "1710"]
[BlackElo "1526"]
[Annotator "NA"]
[PlyCount "113"]
[EventDate "2018.12.30"]
[EventType "swiss"]
[EventCountry "IND"]
[SourceTitle "playchess.com"]
[Source "ChessBase"]
[SourceQuality "1"]
[TimeControl "40/5400+30:1800+30"]

1. d4 {[%emt 0:00:00]} Nf6 {[%emt 0:04:31]} 2. c4 {[%emt 0:00:00]} d6 {[%emt 0:00:17]} 3. Nc3 {[%emt 0:00:00]} g6 {[%emt 0:00:08]} 4. e4 {[%emt 0:00:00]} Bg7 {[%emt 0:00:01]} 5. Be2 {[%emt 0:00:02]} O-O {[%emt 0:00:07]} 6. Nf3 {[%emt 0:00:07]} Nc6 {[%emt 0:00:08]} 7. O-O {[%emt 0:00:19]} e5 {[%emt 0:00:02]} 8. Be3 {[%emt 0:00:10]} Ng4 {[%emt 0:00:20]} 9. Bg5 {[%emt 0:00:08]} f6 {[%emt 0:01:52]} 10. Bc1 {[%emt 0:00:08]} exd4 {[%emt 0:01:51]} 11. Nxd4 {[%emt 0:01:43]} Nxd4 {[%emt 0:05:47]} 12. Qxd4 {[%emt 0:00:50]} Kh8 {[%emt 0:00:31]} 13. Qd1 {[%emt 0:02:10]} Ne5 {[%emt 0:02:26]} 14. Be3 {[%emt 0:07:32]} Be6 {[%emt 0:00:20]} 15. Nd5 {[%emt 0:05:01]} f5 {[%emt 0:16:15]} 16. exf5 {[%emt 0:07:30]} Bxf5 {[%emt 0:00:34]} 17. Bd4 {[%emt 0:01:03]} c6 {[%emt 0:01:43]} 18. Ne3 {[%emt 0:00:23]} Be6 {[%emt 0:09:57]} 19. f4 {[%emt 0:08:29]} Nf7 {[%emt 0:01:10]} 20. Bxg7+ {[%emt 0:03:19]} Kxg7 {[%emt 0:00:02]} 21. Bg4 {[%emt 0:02:53]} Qb6 {[%emt 0:01:05]} 22. Re1 {[%emt 0:01:45]} Bxg4 {[%emt 0:19:05]} 23. Qxg4 {[%emt 0:00:43]} Rae8 {[%emt 0:02:25]} 24. Qg3 {[%emt 0:02:04]} Nh6 {[%emt 0:07:47]} 25. Qf2 {[%emt 0:06:08]} Qd4 {[%emt 0:04:47]} 26. Rad1 {[%emt 0:01:52]} Qxf4 {[%emt 0:00:52]} 27. Qxf4 {[%emt 0:01:29]} Rxf4 {[%emt 0:01:33]} 28. Nf5+ {[%emt 0:00:03]} Nxf5 {[%emt 0:02:57]} 29. Rxe8 {[%emt 0:00:21]} Rxc4 {[%emt 0:00:12]} 30. Re2 {[%emt 0:03:23]} d5 {[%emt 0:00:34]} 31. b3 {[%emt 0:00:54]} Rb4 {[%emt 0:01:14]} 32. Rd3 {[%emt 0:01:32]} h5 {[%emt 0:03:14]} 33. a3 {[%emt 0:02:30]} Rb6 {[%emt 0:00:23]} 34. g3 {[%emt 0:02:31]} Nd6 {[%emt 0:01:05]} 35. Re6 {[%emt 0:01:48]} Ne4 {[%emt 0:00:59]} 36. Rf3 {[%emt 0:00:26]} a5 {[%emt 0:03:54]} 37. Re7+ {[%emt 0:00:21]} Kh6 {[%emt 0:00:05]} 38. h4 {[%emt 0:03:08]} g5 {[%emt 0:06:31]} 39. Rff7 {[%emt 0:01:24]} gxh4 {[%emt 0:00:46]} 40. gxh4 {[%emt 0:00:00]} Kg6 {[%emt 0:00:00]} 41. Rxb7 {[%emt 0:01:26]} Rxb3 {[%emt 0:01:52]} 42. Rg7+ {[%emt 0:00:20]} Kf6 {[%emt 0:00:58]} 43. Rxb3 {[%emt 0:00:09]} Kxg7 {[%emt 0:00:16]} 44. Rb7+ {[%emt 0:00:18]} Kf8 {[%emt 0:02:34]} 45. Kf1 {[%emt 0:06:00]} Ng3+ {[%emt 0:06:04]} 46. Kf2 {[%emt 0:00:34]} Nf5 {[%emt 0:00:01]} 47. Rc7 {[%emt 0:00:47]} Nd4 {[%emt 0:00:37]} 48. a4 {[%emt 0:00:50]} Ke8 {[%emt 0:00:11]} 49. Rh7 {[%emt 0:00:40]} Kd8 {[%emt 0:01:00]} 50. Rxh5 {[%emt 0:00:33]} Kc7 {[%emt 0:00:08]} 51. Rg5 {[%emt 0:00:53]} Ne6 {[%emt 0:02:13]} 52. Rg6 {[%emt 0:00:28]} Nf4 {[%emt 0:00:28]} 53. Rf6 {[%emt 0:01:12]} Nd3+ {[%emt 0:00:21]} 54. Ke2 {[%emt 0:00:22]} Ne5 {[%emt 0:01:03]} 55. h5 {[%emt 0:00:19]} d4 {[%emt 0:00:36]} 56. h6 {[%emt 0:00:28]} d3+ {[%emt 0:00:03]} 57. Kd2 {[%emt 0:00:33]} 1-0

[Event "IIFL Wealth 4th Mumbai Open"]
[Site "Mumbai"]
[Date "2019.01.05"]
[Round "7"]
[White "Deepak, Rai"]
[Black "Rushyendra Chowdary Kantipudi"]
[Result "1-0"]
[ECO "D00"]
[WhiteElo "1710"]
[BlackElo "1527"]
[Annotator "NA"]
[PlyCount "69"]
[EventDate "2018.12.30"]
[EventType "swiss"]
[EventCountry "IND"]
[SourceTitle "playchess.com"]
[Source "ChessBase"]
[SourceQuality "1"]
[TimeControl "40/5400+30:1800+30"]

1. d4 d5 2. Bf4 Bf5 3. e3 e6 4. Bd3 Bxd3 5. Qxd3 c6 6. Nf3 Nf6 7. Nbd2 Nbd7 8. O-O Be7 9. c4 O-O 10. h3 h6 11. c5 b6 12. b4 a5 13. a3 b5 14. a4 bxa4 15. b5 Qc8 16. Rfc1 Qb7 17. b6 Ra6 18. Rxa4 Rfa8 19. Nb3 Ne4 20. Bc7 f6 21. Nfd2 Nxd2 22. Qxd2 Qc8 23. Rca1 Qe8 24. Rxa5 Qc8 25. R1a4 Bd8 26. Rxa6 Rxa6 27. Rxa6 Bxc7 28. Qa2 Bb8 29. Ra8 Qe8 30. Qa7 e5 31. Rxb8 Nxb8 32. Qc7 Kh7 33. b7 exd4 34. Nxd4 Qe5 35. Qc8 1-0

[Event "IIFL Wealth 4th Mumbai Open"]
[Site "Mumbai"]
[Date "2019.01.05"]
[Round "7"]
[White "Tamhankar, Siddhant"]
[Black "Marium Fatima"]
[Result "1-0"]
[ECO "C05"]
[WhiteElo "1704"]
[BlackElo "1494"]
[Annotator "NA"]
[PlyCount "133"]
[EventDate "2018.12.30"]
[EventType "swiss"]
[EventCountry "IND"]
[SourceTitle "playchess.com"]
[Source "ChessBase"]
[SourceQuality "1"]
[TimeControl "40/5400+30:1800+30"]

1. e4 {[%emt 0:00:00]} e6 {[%emt 0:00:00]} 2. d4 {[%emt 0:00:00]} d5 {[%emt 0:00:00]} 3. Nd2 {[%emt 0:00:00]} Nf6 {[%emt 0:00:00]} 4. Bd3 {[%emt 0:00:00]} Be7 {[%emt 0:00:33]} 5. Ngf3 {[%emt 0:00:09]} O-O {[%emt 0:00:40]} 6. O-O {[%emt 0:00:07]} c5 {[%emt 0:00:45]} 7. c3 {[%emt 0:00:08]} Nc6 {[%emt 0:00:52]} 8. Re1 {[%emt 0:01:10]} dxe4 {[%emt 0:03:54]} 9. Nxe4 {[%emt 0:00:31]} cxd4 {[%emt 0:01:05]} 10. cxd4 {[%emt 0:01:38]} Nxd4 {[%emt 0:06:09]} 11. Bg5 {[%emt 0:07:38]} Nxe4 {[%emt 0:05:03]} 12. Bxe7 {[%emt 0:01:31]} Qxe7 {[%emt 0:04:09]} 13. Rxe4 {[%emt 0:08:21]} Nxf3+ {[%emt 0:03:13]} 14. Qxf3 {[%emt 0:00:12]} Bd7 {[%emt 0:03:10]} 15. Qh3 {[%emt 0:04:45]} f5 {[%emt 0:01:12]} 16. Re5 {[%emt 0:00:45]} Qf6 {[%emt 0:01:47]} 17. Rae1 {[%emt 0:00:23]} Rae8 {[%emt 0:00:49]} 18. Qe3 {[%emt 0:00:20]} a6 {[%emt 0:01:24]} 19. Bc4 {[%emt 0:02:21]} Qg6 {[%emt 0:02:05]} 20. Qb3 {[%emt 0:08:14]} b5 {[%emt 0:05:25]} 21. Bxe6+ {[%emt 0:09:33]} Bxe6 {[%emt 0:00:15]} 22. Rxe6 {[%emt 0:00:03]} Rxe6 {[%emt 0:00:10]} 23. Rxe6 {[%emt 0:00:34]} Qf7 {[%emt 0:00:16]} 24. Qd5 {[%emt 0:03:39]} h6 {[%emt 0:05:21]} 25. h3 {[%emt 0:02:16]} Kh8 {[%emt 0:02:08]} 26. Qe5 {[%emt 0:00:24]} a5 {[%emt 0:02:53]} 27. Rxh6+ {[%emt 0:00:12]} Kg8 {[%emt 0:00:16]} 28. Re6 {[%emt 0:00:18]} f4 {[%emt 0:03:15]} 29. Re7 {[%emt 0:01:37]} Qf6 {[%emt 0:00:31]} 30. Qxf6 {[%emt 0:01:21]} Rxf6 {[%emt 0:00:08]} 31. Re5 {[%emt 0:00:19]} Rd6 {[%emt 0:01:57]} 32. Rxb5 {[%emt 0:00:16]} Rd1+ {[%emt 0:00:14]} 33. Kh2 {[%emt 0:00:13]} Rd2 {[%emt 0:00:07]} 34. f3 {[%emt 0:00:11]} Kh7 {[%emt 0:00:53]} 35. a4 {[%emt 0:01:16]} g6 {[%emt 0:00:29]} 36. b3 {[%emt 0:00:18]} Rb2 {[%emt 0:00:12]} 37. h4 {[%emt 0:00:09]} Kg7 {[%emt 0:01:19]} 38. Kh3 {[%emt 0:01:38]} Kh6 {[%emt 0:00:11]} 39. Rb7 {[%emt 0:01:55]} Rd2 {[%emt 0:01:27]} 40. Rb5 {[%emt 0:00:00]} Rb2 {[%emt 0:00:00]} 41. Rb6 {[%emt 0:01:29]} Rd2 {[%emt 0:00:45]} 42. b4 {[%emt 0:02:32]} Rd4 {[%emt 0:00:50]} 43. bxa5 {[%emt 0:00:09]} Rxa4 {[%emt 0:00:10]} 44. Ra6 {[%emt 0:00:13]} Ra2 {[%emt 0:00:47]} 45. Ra7 {[%emt 0:00:31]} Ra1 {[%emt 0:01:13]} 46. a6 {[%emt 0:01:39]} Ra2 {[%emt 0:00:12]} 47. Ra8 {[%emt 0:00:30]} Kh7 {[%emt 0:00:21]} 48. a7 {[%emt 0:00:12]} Kg7 {[%emt 0:00:23]} 49. g3 {[%emt 0:01:06]} fxg3 {[%emt 0:00:07]} 50. Kxg3 {[%emt 0:00:05]} Ra4 {[%emt 0:00:37]} 51. f4 {[%emt 0:00:52]} Ra3+ {[%emt 0:00:11]} 52. Kg4 {[%emt 0:01:01]} Ra5 {[%emt 0:00:16]} 53. h5 {[%emt 0:01:44]} gxh5+ {[%emt 0:01:32]} 54. Kh4 {[%emt 0:00:07]} Kh7 {[%emt 0:00:31]} 55. f5 {[%emt 0:00:28]} Ra4+ {[%emt 0:01:26]} 56. Kxh5 {[%emt 0:00:08]} Ra5 {[%emt 0:00:40]} 57. Kg4 {[%emt 0:00:12]} Ra4+ {[%emt 0:00:46]} 58. Kf3 {[%emt 0:00:06]} Ra6 {[%emt 0:00:43]} 59. Ke4 {[%emt 0:00:14]} Ra4+ {[%emt 0:00:41]} 60. Kd3 {[%emt 0:00:16]} Ra3+ {[%emt 0:00:57]} 61. Kc2 {[%emt 0:00:21]} Ra2+ {[%emt 0:00:44]} 62. Kb1 {[%emt 0:00:18]} Ra6 {[%emt 0:00:19]} 63. f6 {[%emt 0:00:26]} Rb6+ {[%emt 0:00:17]} 64. Kc2 {[%emt 0:00:24]} Rc6+ {[%emt 0:00:03]} 65. Kb3 {[%emt 0:00:25]} Rb6+ {[%emt 0:00:34]} 66. Kc4 {[%emt 0:00:05]} Rxf6 {[%emt 0:00:20]} 67. Rd8 {[%emt 0:00:21]} 1-0

[Event "IIFL Wealth 4th Mumbai Open"]
[Site "Mumbai"]
[Date "2019.01.05"]
[Round "7"]
[White "Joglekar, Abhijit"]
[Black "Abhinav Dubey"]
[Result "1-0"]
[ECO "B92"]
[WhiteElo "1692"]
[BlackElo "1425"]
[Annotator "NA"]
[PlyCount "97"]
[EventDate "2018.12.30"]
[EventType "swiss"]
[EventCountry "IND"]
[SourceTitle "playchess.com"]
[Source "ChessBase"]
[SourceQuality "1"]
[TimeControl "40/5400+30:1800+30"]

1. e4 c5 2. Nf3 d6 3. d4 cxd4 4. Nxd4 Nf6 5. Nc3 a6 6. Be2 e5 7. Nb3 Be7 8. Be3 Be6 9. f3 O-O 10. Qd2 Qc7 11. g4 d5 12. Nxd5 Nxd5 13. exd5 Bh4+ 14. Kf1 Rd8 15. c4 Qe7 16. Kg2 f5 17. h3 f4 18. Bb6 Rd7 19. Bd3 Bf7 20. Bf5 Rd6 21. Bc5 Nd7 22. Bxd6 Qxd6 23. Bxd7 Qxd7 24. Qe2 Re8 25. Nc5 Qc7 26. Ne4 b5 27. b3 Rb8 28. Rhd1 bxc4 29. bxc4 Bg6 30. Rd2 Qa5 31. Rad1 Qa3 32. Rd3 Qe7 33. d6 Qd8 34. c5 h5 35. c6 hxg4 36. hxg4 Rb4 37. Rb3 Rxb3 38. axb3 Bxe4 39. Qxe4 Qa5 40. Qd5+ Qxd5 41. Rxd5 Bf6 42. c7 Kf7 43. c8=Q Kg6 44. Qe8+ Kh7 45. Qh5+ Kg8 46. Rc5 Bd8 47. Rc8 g5 48. Qg6+ Kh8 49. Rxd8# 1-0

[Event "IIFL Wealth 4th Mumbai Open"]
[Site "Mumbai"]
[Date "2019.01.05"]
[Round "7"]
[White "Shetye, Shyam"]
[Black "Gupta R K"]
[Result "1-0"]
[ECO "C46"]
[WhiteElo "1685"]
[BlackElo "1451"]
[Annotator "NA"]
[PlyCount "91"]
[EventDate "2018.12.30"]
[EventType "swiss"]
[EventCountry "IND"]
[SourceTitle "playchess.com"]
[Source "ChessBase"]
[SourceQuality "1"]
[TimeControl "40/5400+30:1800+30"]

1. e4 {[%emt 0:00:00]} e5 {[%emt 0:00:00]} 2. Nf3 {[%emt 0:00:00]} Nc6 {[%emt 0:00:14]} 3. Nc3 {[%emt 0:00:00]} Bc5 {[%emt 0:00:13]} 4. Bb5 {[%emt 0:01:07]} a6 {[%emt 0:00:27]} 5. Ba4 {[%emt 0:01:38]} Nf6 {[%emt 0:00:05]} 6. Nxe5 {[%emt 0:05:39]} Bxf2+ {[%emt 0:00:22]} 7. Kxf2 {[%emt 0:00:08]} Nxe5 {[%emt 0:00:39]} 8. Rf1 {[%emt 0:00:12]} Nfg4+ 9. Kg1 Qh4 {[%emt 0:05:19]} 10. h3 {[%emt 0:00:57]} Qg3 {[%emt 0:00:19]} 11. hxg4 {[%emt 0:01:18]} Nxg4 12. Rf3 Qh2+ {[%emt 0:01:48]} 13. Kf1 {[%emt 0:00:50]} Qh1+ {[%emt 0:00:03]} 14. Ke2 {[%emt 0:00:09]} Qxg2+ 15. Ke1 Nh2 16. Rf2 Qg1+ 17. Ke2 Qg4+ 18. Ke1 Qg3 {[%emt 0:17:05]} 19. Ke2 {[%emt 0:02:14]} b5 {[%emt 0:00:10]} 20. Qh1 {[%emt 0:02:00]} Ng4 {[%emt 0:00:25]} 21. Rf3 {[%emt 0:00:38]} Qe5 {[%emt 0:00:28]} 22. Qg2 {[%emt 0:14:54]} d5 {[%emt 0:00:23]} 23. d4 {[%emt 0:02:54]} Qxd4 {[%emt 0:01:04]} 24. Rd3 {[%emt 0:03:02]} Qe5 {[%emt 0:00:23]} 25. Rxd5 {[%emt 0:01:10]} Qh2 {[%emt 0:00:08]} 26. Qxh2 {[%emt 0:02:29]} Nxh2 {[%emt 0:00:02]} 27. Bf4 {[%emt 0:01:57]} Ng4 {[%emt 0:00:12]} 28. Bb3 {[%emt 0:03:26]} Nf6 {[%emt 0:01:02]} 29. Re5+ {[%emt 0:03:05]} Kf8 {[%emt 0:00:36]} 30. Rf1 {[%emt 0:06:42]} Bg4+ {[%emt 0:00:47]} 31. Kd2 {[%emt 0:01:30]} Rd8+ {[%emt 0:00:10]} 32. Kc1 {[%emt 0:00:05]} c5 {[%emt 0:00:39]} 33. Rxc5 {[%emt 0:01:22]} b4 {[%emt 0:00:04]} 34. Nd5 {[%emt 0:02:27]} Nxe4 35. Rc7 Be6 {[%emt 0:06:47]} 36. Nxb4 {[%emt 0:03:46]} Bxb3 {[%emt 0:00:12]} 37. axb3 {[%emt 0:00:19]} f6 {[%emt 0:00:28]} 38. Re1 {[%emt 0:01:36]} Nf2 {[%emt 0:01:03]} 39. Bg3 {[%emt 0:01:47]} Ng4 {[%emt 0:00:26]} 40. Ree7 {[%emt 0:00:53]} h5 {[%emt 0:00:34]} 41. Rf7+ {[%emt 0:30:50]} Kg8 {[%emt 0:30:05]} 42. Rxg7+ {[%emt 0:00:24]} Kf8 43. Rcf7+ Ke8 {[%emt 0:01:21]} 44. Nxa6 {[%emt 0:00:59]} Rc8 {[%emt 0:01:46]} 45. Nc7+ {[%emt 0:02:13]} Rxc7 {[%emt 0:00:14]} 46. Rxc7 {[%emt 0:00:08]} 1-0

[Event "IIFL Wealth 4th Mumbai Open"]
[Site "Mumbai"]
[Date "2019.01.05"]
[Round "7"]
[White "Mayank Chakraborty"]
[Black "Shravan Swaminathan"]
[Result "1-0"]
[ECO "B12"]
[WhiteElo "1677"]
[BlackElo "1569"]
[Annotator "NA"]
[PlyCount "109"]
[EventDate "2018.12.30"]
[EventType "swiss"]
[EventCountry "IND"]
[SourceTitle "playchess.com"]
[Source "ChessBase"]
[SourceQuality "1"]
[TimeControl "40/5400+30:1800+30"]

1. e4 {[%emt 0:00:00]} c6 {[%emt 0:00:00]} 2. d4 {[%emt 0:00:00]} d5 {[%emt 0:00:00]} 3. Nd2 {[%emt 0:00:00]} e6 {[%emt 0:00:00]} 4. Ngf3 {[%emt 0:00:26]} Nf6 {[%emt 0:02:16]} 5. Bd3 {[%emt 0:01:51]} Be7 {[%emt 0:08:07]} 6. c3 {[%emt 0:00:55]} dxe4 {[%emt 0:05:59]} 7. Nxe4 {[%emt 0:00:11]} Nbd7 {[%emt 0:00:39]} 8. O-O {[%emt 0:02:41]} O-O {[%emt 0:03:29]} 9. Bf4 {[%emt 0:00:49]} Nxe4 {[%emt 0:00:39]} 10. Bxe4 {[%emt 0:00:11]} Nf6 {[%emt 0:04:10]} 11. Bc2 {[%emt 0:00:12]} b6 {[%emt 0:00:15]} 12. Ne5 {[%emt 0:02:06]} Bb7 {[%emt 0:00:55]} 13. Qd3 {[%emt 0:03:16]} g6 {[%emt 0:08:14]} 14. Qh3 {[%emt 0:01:58]} Nd7 {[%emt 0:04:52]} 15. Bh6 {[%emt 0:03:41]} Re8 {[%emt 0:01:07]} 16. Ng4 {[%emt 0:04:23]} f5 {[%emt 0:12:54]} 17. Ne3 {[%emt 0:01:12]} Bg5 {[%emt 0:01:15]} 18. Rfe1 {[%emt 0:01:42]} Bxh6 {[%emt 0:07:14]} 19. Qxh6 {[%emt 0:00:09]} Qf6 {[%emt 0:02:27]} 20. Bb3 {[%emt 0:04:41]} Kh8 {[%emt 0:00:53]} 21. Nc4 {[%emt 0:00:34]} e5 {[%emt 0:01:44]} 22. dxe5 {[%emt 0:01:15]} Nxe5 {[%emt 0:00:11]} 23. Qe3 {[%emt 0:02:50]} f4 {[%emt 0:09:32]} 24. Qe4 {[%emt 0:01:01]} Re7 {[%emt 0:02:03]} 25. Nxe5 {[%emt 0:03:30]} Rae8 {[%emt 0:00:30]} 26. Qd4 {[%emt 0:05:33]} Rxe5 {[%emt 0:00:09]} 27. Rxe5 {[%emt 0:00:08]} Qxe5 {[%emt 0:12:46]} 28. Re1 {[%emt 0:02:16]} Qxd4 29. Rxe8+ {[%emt 0:01:24]} Kg7 {[%emt 0:00:04]} 30. cxd4 {[%emt 0:00:13]} Ba6 {[%emt 0:00:04]} 31. Re7+ {[%emt 0:00:09]} Kf6 {[%emt 0:00:01]} 32. Rxh7 {[%emt 0:00:11]} Bb5 {[%emt 0:00:02]} 33. Rxa7 {[%emt 0:00:12]} g5 {[%emt 0:00:01]} 34. Rb7 {[%emt 0:00:13]} Bd3 {[%emt 0:00:01]} 35. Rxb6 {[%emt 0:00:10]} Ke7 {[%emt 0:00:00]} 36. Rxc6 {[%emt 0:00:15]} Kd7 {[%emt 0:00:04]} 37. Rh6 {[%emt 0:00:19]} g4 {[%emt 0:00:03]} 38. Be6+ {[%emt 0:00:08]} Ke7 {[%emt 0:00:01]} 39. Bxg4 {[%emt 0:00:09]} Kf7 {[%emt 0:00:01]} 40. a4 {[%emt 0:00:00]} Kg7 {[%emt 0:00:00]} 41. Rb6 {[%emt 0:00:25]} Kf7 {[%emt 0:00:03]} 42. a5 {[%emt 0:00:08]} Ke7 {[%emt 0:00:02]} 43. a6 {[%emt 0:00:10]} Bxa6 {[%emt 0:00:02]} 44. Rxa6 {[%emt 0:00:08]} Kd8 {[%emt 0:00:00]} 45. Ra7 {[%emt 0:00:13]} Ke8 {[%emt 0:00:01]} 46. Bh5+ {[%emt 0:00:10]} Kd8 {[%emt 0:00:00]} 47. d5 {[%emt 0:00:10]} Kc8 {[%emt 0:00:01]} 48. d6 {[%emt 0:00:09]} Kd8 {[%emt 0:00:01]} 49. Bg4 {[%emt 0:00:16]} Ke8 {[%emt 0:00:00]} 50. Rd7 {[%emt 0:00:14]} Kf8 {[%emt 0:00:01]} 51. Re7 {[%emt 0:00:10]} Kg8 {[%emt 0:00:00]} 52. d7 {[%emt 0:00:10]} Kf8 {[%emt 0:00:01]} 53. Rh7 {[%emt 0:00:10]} Kg8 {[%emt 0:00:01]} 54. Bf5 {[%emt 0:00:10]} Kf8 {[%emt 0:00:00]} 55. d8=Q# {[%emt 0:00:14]} 1-0